{"text_format":"3","workbook":"xlsx","n_sheets":4,"sheets":["Summary","Section 1 Preliminaries","Section 2 Ad Hoc","Section 3 HVAC"],"read":"whole","date_system":"1900"}

{"sheet":"Summary","index":0,"n_rows":35,"n_cols":8,"rows_kept":35,"merged":[[0,0,0,7],[2,0,2,7],[4,0,4,7],[24,2,26,3],[34,0,35,7]]}
["ESKOM HOLDINGS LIMITED"]
["BILLS OF QUANTITIES FOR THE MAINTENANCE OF NORTHERN CAPE FOR KALAHARI,HARTS, KAROO & KGALAGADI SECTORS"]
[]
[]
["FINAL SUMMARY"]
[]
[]
[null,"Section","CORE TECHNICAL SERVICES",null,"Page","Items",null,"Amount"]
[]
[null,1,"PRELIMINARIES",{"$nulls":3},"R",{"$f":"'Section 1 Preliminaries'!G241","v":{"v":0,"d":"0.00"}}]
[]
[null,2,"AD HOC",{"$nulls":3},"R",{"$f":"'Section 2 Ad Hoc'!G130","v":{"v":0,"d":"0.00"}}]
[]
[null,3,"PLUMBING",{"$nulls":3},"R",{"$f":"'Section 3 HVAC'!I157","v":{"v":0,"d":"0.00"}}]
[]
[null,4,"ELECTRICAL",{"$nulls":3},"R",{"$f":"#REF!","v":{"$error":"#REF!"}}]
[]
[null,5,"CIVIL",{"$nulls":3},"R",{"$f":"#REF!","v":{"$error":"#REF!"}}]
[]
[null,6,"CAPENTRY",{"$nulls":3},"R",{"$f":"#REF!","v":{"$error":"#REF!"}}]
[]
[null,7,"ALTERATIONS",{"$nulls":3},"R",{"$f":"#REF!","v":{"$error":"#REF!"}}]
[]
[null,null,"Sub-Total",{"$nulls":3},"R",{"$f":"SUM(H9:H23)","v":{"$error":"#REF!"}}]
[null,null,"Allow 5% Contingencies on the above total to be used at the discretion of the Project Manager and deducted in part if so required."]
[{"$nulls":6},"R",{"$f":"H24*0.05","v":{"$error":"#REF!"}}]
[]
[null,null,"Sub-Total",{"$nulls":3},"R",{"$f":"+H24+H26","v":{"$error":"#REF!"}}]
[]
[null,null,"ADD:"]
[null,null,"15% VAT",{"$nulls":3},"R",{"$f":"H28*0.15","v":{"$error":"#REF!"}}]
[]
[null,null,"TOTAL CARRIED TO FORM OF OFFER ",{"$nulls":3},"R",{"$f":"+H28+H31","v":{"$error":"#REF!"}}]
[]
["This schedule provides a summary of the total value of all the sections and remains the responsibility of the contractor to ensure the accuracy of the amount carried to the summary."]

{"sheet":"Section 1 Preliminaries","index":1,"n_rows":241,"n_cols":7,"rows_kept":241,"merged":[[0,0,0,2],[2,0,2,4]]}
["SECTION NO 1: PRELIMINARIES "]
[]
["Insert Pricing in all highlighted Blocks (All highlighted blocks must be filled in)"]
[]
["Page","Item","Description","Unit","Qty","Rate","Amount"]
[]
[null,null,"MANAGEMENT OF CONTRACT"]
[]
[null,1,"Management fee,  Maintenance of Health and Safety File for contract duration and submission thereof at hand- over/completion per task order.\n 5% of task order value capped at R500 whichever is the lesser of the two\n","Per\ntask\norder  5% of task order value capped at R500 whichever is the lesser of the two\n",1,0,{"$f":"SUM(F9*E9)","v":0}]
[]
[null,null,"The preliminaries and generals must be priced in accordance with NEC Short term contract services and must include all indirect associated cost not priced in the Schedule of Rates."]
[]
[null,null,"MATERIALS AND WORKMANSHIP"]
[]
[null,null,"Samples of materials"]
[]
[null,null,"The Service provider shall furnish samples of materials and specimens of finishes as may be called for by the Eskom ERE (Northern Cape) Official for his approval. "]
[]
[null,null,"Workmanship samples"]
[]
[null,null,"The Eskom ERE (Northern Cape) Official may instruct the Service Provider to furnish samples of workmanship for his approval.  Where the Eskom ERE (Northern Cape) Official requires an assembly of various elements of the building or installation, which is not incorporated in the Works, the Contractor shall arrange such an assembly at the Employer's expense and the contract value shall be adjusted accordingly. "]
[]
[null,null,"The Eskom ERE (Northern Cape) Official may reject any workmanship not corresponding with approved samples.  Approved samples are to be kept on site until the completion of the Works and  thereafter removed if not required in the finished work.  Adequate access and viewing facilities shall be provided. "]
[]
[null,null,"TEMPORARY WORKS AND PLANT"]
[]
[null,null,"The Tenderer is deemed to have priced against this item for all costs in respect of these requirements."]
[]
[null,null,"Advertising"]
[]
[null,null,"All advertising rights on the site and the hoardings  are reserved exclusively for the Employer. "]
[]
[null,2,"Plant, equipment, sheds and offices","Monthly",1,0,{"$f":"SUM(E33*F33)","v":0}]
[]
[null,null,"The Service Provider shall provide, maintain and remove "]
[null,null,"on completion:"]
[null,null," "]
[null,null,"a) All plant, equipment, scaffolding, tools and the like required for the due and proper fulfilment of the Works. "]
[null,null,"b) Temporary sheds for the proper storage of materials and the use of the Service Provider's workers."]
[]
[null,null,"Main noticeboard"]
[]
[null,null,"The Contractor shall provide a main noticeboard of an approved design with the title of the project and the names of the Employer, the Project Manager, the Agents and the Contractor sign written thereon.  The Eskom ERE (Northern Cape) Official shall instruct the Contractor where the board is to be erected. "]
[]
[null,null,"Temporary Services"]
[]
[null,null,"Water"]
[]
[null,null,"Eskom ERE (Northern Cape) shall ensure that water is available on site. "]
[]
[null,null,"GENERAL"]
[]
[null,null,"Protection of the Works"]
[]
[null,null,"Specific protection measures required by the Employer are described in detail in the Works Information "]
[]
[null,null,"Protection of existing and/or partially occupied "]
[null,null,"Works"]
[]
[null,null,"The Service Provider shall provide all reasonable temporary measures to protect/ isolate the existing and/ or sections of the occupied Works and remove such measures on completion. Negligence on the part of the service provider shall be charged by the Employer"]
[]
[null,null,"Site Security - Works Information"]
[]
[null,null,"The Service Provider shall take all appropriate measures for general site security and shall ensure that the following requirements are adhered to at all times: "]
[]
[null,null,"a) All workers to be in new company overalls, safety helmets, boots, etc."]
[null,null,"b) The following items will not be allowed on site:"]
[null,null,"i) Fire arms or other dangerous weapons"]
[null,null,"ii) Explosives"]
[null,null,"iii) Liquor"]
[null,null,"iv) Narcotic drugs"]
[]
[null,null,"The employees of the service provider shall be subjected to security check."]
[]
[null,null,"The Service Provider must ensure at all times that the compliance with regards to safety and protection of the employers property are adhered to."]
[]
[null,null,"Disturbance"]
[]
[null,null,"The Service Provider must execute the Works with a minimum and acceptable of disturbance to premises."]
[]
[null,null,"Works cleaning and clearing"]
[]
[null,null,"The Service Provider shall regularly clean and clear away all rubbish and excess materials as the Works proceed and leave the Works in a clean and satisfactory state for use and occupation in terms of the agreement. "]
[]
[null,null,"Vermin"]
[]
[null,null,"The Service Provider shall take all necessary precautions to keep the Works and site free from vermin and shall leave the Works vermin-free."]
[]
[null,null,"Occupational Health and Safety Act"]
[]
[null,null,"The Service Provider shall for the duration of this contract be deemed to be the mandatory Eskom for the purposes of the Occupational Health and Safety Act No. 85 of 1993, and he shall prior to taking occupation of the site satisfy Eskom by means of written representations that he has fully compiled with the relevant requirements of the said act."]
[]
[null,null,"Acceptance by Eskom of the Service Provider's written representations in terms of the above shall constitute an agreement in writing to the arrangements and procedures between the parties to ensure compliance by the Contractor with the provision of the act referred to therein, for the purpose of section 37(2) of the said act."]
[]
[null,null,"Eskom shall at all times have the right to summarily suspend the performance of the Contractor hereunder pending compliance by the Contractor with any requirement, regulation and direction referred to."]
[]
[null,null,"Eskom shall be entitled to set off against any amount owed by Eskom to the service provider hereunder any loss or damage suffered by it as a result of the suspension of the contractors performance in the circumstances envisaged above."]
[]
[null,null,"The tenderer shall price for all necessary items to comply with the Occupational Health and Safety Act Specification."]
[]
[]
[null,null,"SUPPLEMENTARY DOCUMENTATION"]
[]
[null,null,"Labour Record"]
[]
[null,null,"At the end of each week the Service Provider shall provide the Eskom ERE (Northern Cape) Official with a written provide the Eskom ERE (Northern Cape) Official with a written record, in schedule form, reflecting the number and description of tradesmen and labourers employed by him and all Sub-Contractors on the Works each day. "]
[]
[null,null,"Plant Record"]
[]
[null,null,"At the end of each week the Service Provider shall provide the Eskom ERE (Northern Cape) official with a written record, in schedule form, reflecting the number, type and capacity of all plant, excluding hand tools, currently used on the Works. "]
[]
[null,null,"Unauthorised Persons/ Workmen on Premises"]
[]
[null,null,"The Service Provider shall at all times strictly exclude all unauthorised persons from the Works and the site and shall set up notice boards to that effect. "]
[]
[null,null,"Safety Helmets and Protective Clothing"]
[]
[null,null,"The Service Provider shall take all necessary steps to ensure that all workmen employed on the Works comply with regulations regarding the wearing of appropriate PPE."]
[]
[null,null,"GENERAL"]
[]
[null,null,"Media Releases, Advertising, etc."]
[]
[null,null,"The Service Provider together with his Sub-Contractors shall not, without the written consent of the Employer, cause any statement or advertisement to be printed, screened or aired by the media. "]
[]
[null,null,"Manufacturer's Recommendations"]
[]
[null,null,"All commodities are to be handled, stored, used, applied and/or fixed in strict accordance with the manufacturer's instructions and recommendations and after consultation with the manufacturer's authorised representative.  Should these instructions and/ or recommendations conflict with other specified requirements the Facility Manager must be notified timeously."]
[]
[null,null,"Commodities to be New"]
[]
[null,null,"All commodities, goods, articles or materials throughout the building are to be new so as to ensure that they are likewise in perfect condition when handed over at completion of the Work. "]
[]
[null,null,"Standard of Workmanship and Materials"]
[]
[null,null,"In the absence of detailed specifications for any item or items, National Building Regulations, the latest applicable South African Bureau of Standards Specification, or where such does not exist, then the latest applicable British Standard Specification shall apply. "]
[]
[null,null,"Removal and Making Good of Temporary"]
[null,null,"Works, etc., on Completion"]
[]
[null,null,"The Service Provider shall remove all temporary Works, roads, services and the like used for this Contract and shall make good to the entire satisfaction of the Eskom ERE (Northern Cape) Official any damage resulting therefrom."]
[]
[null,null,"Signage"]
[]
[null,null,"All warning signage must be in English"]
[]
[null,null,"Environmental requirements"]
[]
[null,null,"All costs related to the compliance of the Environmental Requirements must be allowed for by the Contractor under this item."]
[]
[null,null,"Proprietary branded products"]
[]
[null,null,"The Service Provider shall take delivery of, handle, store, use, apply and/or fix all proprietary branded products in strict accordance with the manufacturer's instructions after consultation with the manufacturer's authorized representative."]
[]
[null,null,"Contractors Responsibility"]
[]
[null,null,"The Employer, the Eskom ERE (Northern Cape) Official and the other professional consultants shall not be responsible for any act or omission on the part of the Contractor which may result in any patent or latent defects, in materials or workmanship, breach or neglect of any local regulations.  The Service Provider shall at times be responsible for any such neglect, deviation or wrong act, whether the same discovered before or after the final certificate, or any other Certificate, has been is approved."]
[]
[null,null,"Overtime"]
[]
[null,null,"Should overtime be required to be worked for any reason whatsoever, the costs of such overtime are to be borne by the Service Provider unless the Eskom ERE (Northern Cape) Official has specifically authorized in writing, prior to the execution thereof, that costs for such overtime are to be borne by the Employer."]
[]
[null,null,"Construction instructions"]
[]
[null,null,"Contract instructions issued on site are to be recorded in writing"]
[]
[null,null,"Daily Record Book"]
[]
[null,null,"The Contractor shall record in triplicate in a suitable A4 size triplicate book kept at the site, a daily record book of work done, all site visits by the Eskom ERE (Northern Cape) Official and other professional personnel and all events affecting the Works, such as progress, issue of plans, breakdown of "]
[null,null,"machinery, etc.  The labour, plant and material on site shall be recorded as well as work performed.  Entries must be made by the Contractor and must be signed and forwarded to the Eskom ERE (Northern Cape) Official for his counter-signature on a daily basis. "]
[]
[null,null,"Special Works/Direct Contracts"]
[]
[null,null," The Employer shall have the right to employ other Contractors (hereinafter referred to as 'Direct Contractors') to execute any special or other  Works whether contained in this Contract or not, concurrently with the work  being executed under this contract."]
[]
[null,null,"The Service Provider shall not be entitled to any percentage, profit or discount on the value of any work executed by 'Direct Contractor's . The Service Provider shall allow Direct Contractors, etc., to use, free of charge, the latrine accommodation and water and power supply on the site, and shall not in any way hinder or prevent the execution of their work."]
[]
[null,null,"Guarantees and Maintenance Manuals"]
[]
[null,null,"The Service Provider shall obtain and hand over to the Eskom ERE (Northern Cape) Official on Completion of any task or service, all relevant guarantees, any operating and maintenance instruction manuals, data or instructions required by the Eskom ERE (Northern Cape) Official or provided by manufacturer's, suppliers or Sub-Contractors."]
[]
[null,null,"The Service Provider shall ensure that all warranties and guarantees received are fully ceded to the Employer."]
[]
[null,null,"The supply of all materials are deemed to include the following:"]
[]
[null,null,"Transport, conveying, cartage, carriage and delivery, etc."]
[]
[null,null,"Taking delivery, unloading, storing, unpacking, hoisting or lowering and handling"]
[null,null,"All applicable import taxes and duties."]
[]
[null,null,"All obligations arising out of the Provisional Bills of Quantities, and all costs and charges deemed necessary for complying with the terms and conditions herein."]
[null,null," "]
[null,null,"Removal and Making Good of Temporary Works, etc., on Completion"]
[]
[null,null," The Service Provider shall remove all (except where specifically stated otherwise) temporary Works, roads, services and the like used for this Contract and shall make good to the entire satisfaction of the Eskom ERE (Northern Cape) Official any damage resulting therefrom. "]
[null,null," "]
[null,null,"Making Good"]
[]
[null,null," All materials and workmanship in building up, making good, etc., are to match existing and where new materials abut existing, they are to be neatly jointed to same. "]
[null,null," "]
[null,null," 'Making good' existing work where disturbed or damaged shall mean the provision of the necessary new material to match existing and the necessary workmanship so that a complete restoration is achieved to the satisfaction of the Eskom ERE (Northern Cape) Official."]
[null,null," "]
[null,null,"Making good' where abutting walls, etc., are removed, shall mean the provision of the necessary material and workmanship in filling the gaps to match surrounding finishes so that a complete and perfect surface, continuous with surrounding surfaces and matching of same, is obtained to the Eskom ERE (Northern Cape) Official's satisfaction."]
[null,null," "]
[null,null,"Mode of Procedure"]
[]
[null,null,"Not withstanding anything to the contrary contained herein the Eskom ERE (Northern Cape) Official at all times reserves the right to direct the order in which the various parts of the Contract are to be executed.  The Service Provider shall give priority to any individual section or portion of the Works that, in the opinion of the Eskom ERE (Northern Cape) Official, requires to be expedited."]
[null,null," "]
[null,null,"Should it appear, in the Eskom ERE (Northern Cape) Official's opinion, that work in any area is not being executed in accordance with the requirements of the Contract Programme, the Service Provider shall provide additional manpower and resources and shall work additional overtime and do everything else required to bring the work back to programme to the satisfaction of the Eskom ERE (Northern Cape) Official and to the Contractor's cost"]
[]
[null,null,"Method Statement"]
[]
[null,null,"The Tenderer shall produce, when required to do so by the Eskom ERE (Northern Cape) Official, a Method Statement outlining the methods of construction and labour and plant resources that he proposes to use in the execution of the Works.  Any approval given or observation made by the Eskom ERE (Northern Cape) Official shall not relieve the Contractor of his sole responsibility to adopt the methods of construction and to provide the labour and plant resources necessary for the due and proper timeous execution of the Works."]
[]
[null,null,"Encroachment"]
[]
[null,null,"During the course of the building operations, the Contractor shall be held entirely responsible for any encroachment onto any adjoining properties, buildings, etc., or servitudes and the cost of any remedial measures as required by the Eskom ERE (Northern Cape) Official shall be borne by the Contractor"]
[]
[null,3,"SHE requirements","Item",1,null,{"$f":"E219*F219","v":0}]
[]
[null,null,"The Service Provider shall take the necessary steps to ensure that all workmen employed on the Works comply with regulations regarding the wearing of Personal Protective Equipment as per Eskom's PPE Matrix."]
[]
[null,null,"The Service Provider will provide mandatory OHS Training to all workmen before the commencement of the works. All Workers employed during the construction period shall also receive training before gaining access to the site. e.g. SHE Representative, First Aid, Fire Fighting, risk assessment."]
[]
[null,null,"The Service Provider shall provide task specific training to his employees where a specific task is to be undertaken during the works period e.g. Working at heights, Supervisory (OHS legal liability)."]
[]
[null,null,"The Service Provider must provide the necessary communication tools in the case of emergency, these tools must be kept on site. "]
[]
[null,null,"The Service Provider shall take the necessary provisions for an emergency. This includes First aid boxes, fire extinguisher and emergency alarm in the case of an emergency on site. These essentials must be stored in places that are easily accessible. "]
[]
[null,null,"The Service Provider must take the necessary steps to manage Incidents that occur on site. (meetings, training)"]
[]
[null,null,"The Service Provider is to appoint a competent person as a SHE Officer for the duration of the project. The SHE Officer must carry out all of the services and duties required."]
[]
[null,null,"CARRIED TO FINAL SUMMARY",null,null,"R",{"$f":"SUM(G8:G233)","v":{"v":0,"d":"0.00"}}]
[]
[null,null,{"$f":"A1","v":"SECTION NO 1: PRELIMINARIES "}]
[]
[null,null,{"$f":"A1","v":"SECTION NO 1: PRELIMINARIES "},{"$nulls":3},{"$f":"G235","v":{"v":0,"d":"0.00"}}]
[]
[null,null,"TOTAL CARRIED TO FINAL SUMMARY",{"$nulls":3},{"$f":"G239","v":{"v":0,"d":"0.00"}}]

{"sheet":"Section 2 Ad Hoc","index":2,"n_rows":130,"n_cols":7,"rows_kept":130,"merged":[[0,0,0,2],[2,0,2,2],[4,0,4,2],[6,0,6,2],[8,0,8,2],[10,0,10,2],[12,0,12,2],[14,0,14,2],[16,0,16,2],[18,0,18,2],[21,0,21,2],[23,0,23,2],[25,0,25,2],[27,0,27,2],[29,0,29,2],[31,0,31,2],[33,0,33,2],[34,0,34,2],[35,0,35,2],[36,0,36,2],[37,0,37,2],[38,0,38,2],[39,0,39,2],[40,0,40,2],[41,0,41,2],[42,0,42,2],[43,0,43,2],[44,0,44,2],[46,0,46,4],[122,0,122,2]]}
["SECTION NO. 2: AD HOC MAINTENANCE SERVICES"]
[]
["BILL NO.2 : MAINTENANCE SERVICES"]
[]
["PREAMBLES"]
[]
["The Tenderer is referred to the relevant clauses in the latest edition of the Model Preambles for Trades and to the Supplementary Preambles"]
[]
["SUPPLEMENTARY PREAMBLES"]
[]
["Overtime work and normal work:"]
[]
["The tenderers are advised that the following works may be done during normal working hours as well as after normal working hours. Tenderers must make due allowance for these working hours in the pricing as no claims will be entertained in this regard."]
[]
["Rate Approvals:"]
[]
["The tenderer is advised that any rate that is required for new work must include the following breakdown: Material, labour, plant, wastage, transport and profit. Rate approvals must be authorised by the Eskom ERE (Northern Cape) Official prior to work being carried out."]
[]
["Note: All the items tendered are deemed to include labour, material, plant, wastage and profit except where otherwise specified."]
[]
[]
["HOURLY RATE: North West"]
[]
["The tenderer is advised that the following items are Labour Rates for items not covered in this Bills of Quantities."]
[]
["Tenderers are advised that all labour charges and transport charges must be procured from the closest to the effected site."]
[]
["Any call out work commenced during working hours and completed after normal working hours will be compensated by using normal working hour rates only."]
[]
["Any call out work commenced after normal working hours will be compensated by using after normal working hour rates only."]
[]
["Prior written approval must be received from the Eskom ERE (North West) Official prior to commencement of work."]
[]
["The total cost of remuneration for workers must be in accordance with Government Gazzeted rates and must include the following items "]
["Basic Salary"]
["Leave pay"]
["Sick pay"]
["UIF"]
["COID"]
["Provident Fund"]
["Bonus"]
["Severance pay"]
["NCCA"]
["Skill Levy"]
["Personal Protective Equipment"]
[]
["Insert Pricing in all highlighted Blocks (All highlighted blocks must be filled in)"]
[]
["Page","Item","Description ","Unit","Quantity","Rate ","Amount"]
[]
[null,null,"Work to be done from Monday to Friday between 7:30am and 4pm:"]
[]
[null,null,"Labour"]
[]
[null,"1","Skilled - Artisan - Electrical ","Hr",1,null,{"$f":"E55*F55","v":{"v":0,"d":"0.00"}}]
[]
[null,"2","Skilled - Artisan - Mechanical ","Hr",1,null,{"$f":"E57*F57","v":{"v":0,"d":"0.00"}}]
[]
[null,"3","Skilled - Technician - Air Conditioning ","Hr",1,null,{"$f":"E59*F59","v":{"v":0,"d":"0.00"}}]
[]
[null,"4","Skilled - Installation Electrician (Wirements Licence)","Hr",1,null,{"$f":"E61*F61","v":{"v":0,"d":"0.00"}}]
[]
[null,"5","Semi skilled - Electrical","Hr",1,null,{"$f":"E63*F63","v":{"v":0,"d":"0.00"}}]
[]
[null,"6","Semi skilled - Mechanical","Hr",1,null,{"$f":"E65*F65","v":{"v":0,"d":"0.00"}}]
[]
[null,"7","Semi skilled - Air Conditioning","Hr",1,null,{"$f":"E67*F67","v":{"v":0,"d":"0.00"}}]
[]
[null,"8","Labourer","Hr",1,null,{"$f":"E69*F69","v":{"v":0,"d":"0.00"}}]
[]
[null,"9","Skilled Civil ","Hr",1,null,{"$f":"E71*F71","v":{"v":0,"d":"0.00"}}]
[]
[null,"10","Semi Skilled Civil","Hr",1,null,{"v":0,"d":"0.00"}]
[]
[null,null,"Work to be done outside normal working hours including Public Holidays"]
[]
[null,"11","Skilled - Artisan - Electrical ","Hr",1,null,{"$f":"E77*F77","v":{"v":0,"d":"0.00"}}]
[]
[null,"12","Skilled - Artisan - Mechanical ","Hr",1,null,{"$f":"E79*F79","v":{"v":0,"d":"0.00"}}]
[]
[null,"13","Skilled - Technician - Air Conditioning ","Hr",1,null,{"$f":"E81*F81","v":{"v":0,"d":"0.00"}}]
[]
[null,"14","Skilled - Installation Electrician (Wirements Licence)","Hr",1,null,{"$f":"E83*F83","v":{"v":0,"d":"0.00"}}]
[]
[null,"15","Semi skilled - Electrical","Hr",1,null,{"$f":"E85*F85","v":{"v":0,"d":"0.00"}}]
[]
[null,"16","Semi skilled - Mechanical","Hr",1,null,{"$f":"E87*F87","v":{"v":0,"d":"0.00"}}]
[]
[null,"17","Semi skilled - Air Conditioning","Hr",1,null,{"$f":"E89*F89","v":{"v":0,"d":"0.00"}}]
[]
[null,"18","Labourer","Hr",1,null,{"$f":"E91*F91","v":{"v":0,"d":"0.00"}}]
[]
[null,"19","Skilled Civil","Hr",1,null,{"$f":"E93*F93","v":{"v":0,"d":"0.00"}}]
[]
[null,"20","Semi skilled Civil","Hr",1,null,{"$f":"E95*F95","v":{"v":0,"d":"0.00"}}]
[]
[null,null,"Transport ( Cost of transport / travelling (Includes driver, tools and any other transport related cost) (No claim for travel time will be paid for employees)"]
[]
[null,null,"Payment for transport/traveling will be paid in excess of a 50 km radius from home centre as specified in the NEC Document.  Use of a heavy truck (more than 8 ton should be pre approved by ERE NCOU Officer working with contractor)"]
[]
[null,"21","Cost of transport / travelling (Includes driver, tools and any other transport related cost) ","km",1,null,{"$f":"E101*F101","v":{"v":0,"d":"0.00"}}]
[null,"22","Medium Rigid Truck more than 8 ton","km",1,null,{"$f":"E102*F102","v":{"v":0,"d":"0.00"}}]
[]
[null,null,"Lifting Machinery( Includes Operator, transportation and any other fee thereof)"]
[]
[null,null,"Use of lifting machinery must be pre approved and quote accepted by the ERE NWOU Officer"]
[]
[null,"23","Mobile crane up to 10 tons","day",1,null,{"$f":"E108*F108","v":{"v":0,"d":"0.00"}}]
[null,"24","Mobile crane greater than 10 tons","day",1,null,{"v":0,"d":"0.00"}]
[]
[null,null,"Scaffolding ( Includes erection, taking down, delivering and any cost related to erction and use of scaffold)"]
[]
[null,"25","Scaffolding unit( app 2.5m Long and 1.8m High)","day/unit",1,null,{"$f":"E113*F113","v":{"v":0,"d":"0.00"}}]
[{"$nulls":6},{"$f":"E114*F114","v":{"v":0,"d":"0.00"}}]
[null,null,"Material",{"$nulls":3},{"v":0,"d":"0.00"}]
[{"$nulls":6},{"v":0,"d":"0.00"}]
[null,"26","10 percent mark up on proof of purchased, in case of ex-stock proof of replacement value.               ","%",{"v":0,"d":"0.00"},{"v":0.1,"d":"10%"},{"$f":"E117*F117+E117","v":{"v":0,"d":"0.00"}}]
[]
[null,"33","Accommodation (Will not authorise the payment to be made without proof from third part supplier invoice proof of payment) "]
[null,null,"• Limited to three-star accommodation                                                                                                           • Cost plus 5% on producing invoice, capped at R750 pp all inclusive)","P/Night",{"v":1,"d":"1.00"},null,{"$f":"E120*F120","v":{"v":0,"d":"0.00"}}]
[]
[]
["Bill Total Carried To Sectional Summary",{"$nulls":5},{"$f":"SUM(G21:G118)","v":{"v":0,"d":"0.00"}}]
[]
[]
[null,null,"SECTION 2 AD HOC SUMMARY"]
[]
[null,null,{"$f":"A3","v":"BILL NO.2 : MAINTENANCE SERVICES"},{"$nulls":3},{"$f":"G123","v":{"v":0,"d":"0.00"}}]
[]
[null,null,"TOTAL CARRIED TO FINAL SUMMARY",{"$nulls":3},{"$f":"G128","v":{"v":0,"d":"0.00"}}]

{"sheet":"Section 3 HVAC","index":3,"n_rows":157,"n_cols":9,"rows_kept":157,"merged":[[0,0,0,4],[1,2,1,4],[2,0,2,4],[3,2,3,4],[4,0,4,4],[5,0,5,4],[6,2,6,4],[7,0,7,4],[8,0,8,4],[9,2,9,4],[10,0,10,4],[11,0,11,4],[12,0,12,4],[13,0,13,4],[14,2,14,4],[15,0,15,4],[16,0,16,4],[17,2,17,4],[18,0,18,6],[19,2,19,4],[150,2,150,4],[152,2,152,4],[153,2,153,4],[154,2,154,4],[155,2,155,4],[156,2,156,4]]}
["SECTION NO 3: HVAC"]
[]
["The Tenderer is referred to the relevant clauses in the latest edition of the Model Preambles for Trades and to the Supplementary Preambles"]
[]
["SUPPLEMENTARY PREAMBLES"]
["Refer to conditions of Eskom Term Services Contract, attached. "]
[]
["Overtime work and normal work:"]
["The tenderers are advised that the following works may be done during normal working hours as well as after normal working hours. Tenderers must make due allowance for these working hours in the pricing as no claims will be entertained in this regard."]
[]
["Rate Approvals:"]
["The tenderer is advised that any rate that is required for new work must include the following breakdown:"]
["Material, Labour and Transport if material purchased out of sector region.  A strict policy of no invoice no payment will apply where materials are concerned."]
["Rate approvals must be authorised by the Eskom ERE (NORTHERN CAPE OPERATING UNIT) Official prior to work being carried out."]
[]
["Proprietary items or materials:"]
["Proprietary  items  or  materials  where  specified  are  to  be  of the  brand  specified  -  or  other  approved  -  by  the  Eskom ERE (North West OPERATING UNIT) Official"]
[]
["Insert Pricing in all highlighted Blocks (All highlighted blocks must be filled in)"]
[]
["Page","Item","Description","Item","Comments / Description","Unit","Quantity","Rate ","Amount"]
[null,null,"Aircon Service"]
[null,1,null,"9000 BTU","Mid wall unit","EA",1,0,{"$f":"SUM(G23*H23)","v":0}]
[null,2,null,null,"Cassette unit","EA",1,0,{"$f":"SUM(G24*H24)","v":0}]
[null,3,null,null,"Console unit","EA",1,0,0]
[null,4,null,"12000 BTU","Mid wall unit","EA",1,0,{"$f":"SUM(G26*H26)","v":0}]
[null,5,null,null,"Cassette unit","EA",1,0,0]
[null,6,null,null,"Console unit","EA",1,0,0]
[null,7,null,"18000 BTU","Mid wall unit","EA",1,0,0]
[null,8,null,null,"Cassette unit","EA",1,0,0]
[null,9,null,null,"Console unit","EA",1,0,{"$f":"SUM(G31*H31)","v":0}]
[null,10,null,"24000 BTU","Mid wall unit","EA",1,0,0]
[null,11,null,null,"Cassette unit","EA",1,0,0]
[null,12,null,null,"Console unit","EA",1,0,0]
[null,13,null,"30000 BTU","Mid wall unit","EA",1,0,0]
[null,14,null,null,"Cassette unit","EA",1,0,0]
[null,15,null,null,"Console unit","EA",1,0,0]
[null,16,null,"36000 BTU","Mid wall unit","EA",1,0,0]
[null,17,null,null,"Cassette unit","EA",1,0,0]
[null,18,null,null,"Console unit","EA",1,0,0]
[]
[null,null,"Aircon gas re-fill, including gas leak repair"]
[null,19,null,"9000 BTU","Mid wall unit","EA",1,0,0]
[null,20,null,null,"Cassette unit","EA",1,0,0]
[null,21,null,null,"Console unit","EA",1,0,0]
[null,22,null,"12000 BTU","Mid wall unit","EA",1,0,{"$f":"SUM(G46*H46)","v":0}]
[null,23,null,null,"Cassette unit","EA",1,0,0]
[null,24,null,null,"Console unit","EA",1,0,0]
[null,25,null,"18000 BTU","Mid wall unit","EA",1,0,0]
[null,26,null,null,"Cassette unit","EA",1,0,0]
[null,27,null,null,"Console unit","EA",1,0,0]
[null,28,null,"24000 BTU","Mid wall unit","EA",1,0,{"$f":"SUM(G52*H52)","v":0}]
[null,29,null,null,"Cassette unit","EA",1,0,0]
[null,30,null,null,"Console unit","EA",1,0,0]
[null,31,null,"30000 BTU","Mid wall unit","EA",1,0,0]
[null,32,null,null,"Cassette unit","EA",1,0,0]
[null,33,null,null,"Console unit","EA",1,0,0]
[null,34,null,"36000 BTU","Mid wall unit","EA",1,0,0]
[null,35,null,null,"Cassette unit","EA",1,0,0]
[null,36,null,null,"Console unit","EA",1,0,0]
[]
[null,null,"Replace compressor"]
[null,37,null,"9000 BTU","Mid wall unit","EA",1,0,{"$f":"SUM(G63*H63)","v":0}]
[null,38,null,null,"Cassette unit","EA",1,0,0]
[null,39,null,null,"Console unit","EA",1,0,0]
[null,40,null,"12000 BTU","Mid wall unit","EA",1,0,0]
[null,41,null,null,"Cassette unit","EA",1,0,0]
[null,42,null,null,"Console unit","EA",1,0,0]
[null,43,null,"18000 BTU","Mid wall unit","EA",1,0,0]
[null,44,null,null,"Cassette unit","EA",1,0,0]
[null,45,null,null,"Console unit","EA",1,0,0]
[null,46,null,"24000 BTU","Mid wall unit","EA",1,0,0]
[null,47,null,null,"Cassette unit","EA",1,0,0]
[null,48,null,null,"Console unit","EA",1,0,0]
[null,49,null,"30000 BTU","Mid wall unit","EA",1,0,0]
[null,50,null,null,"Cassette unit","EA",1,0,0]
[null,51,null,null,"Console unit","EA",1,0,0]
[null,52,null,"36000 BTU","Mid wall unit","EA",1,0,0]
[null,53,null,null,"Cassette unit","EA",1,0,0]
[null,54,null,null,"Console unit","EA",1,0,0]
[]
[null,null,"Aircon remove, move, service & Re-install in new position"]
[null,55,null,"9000 BTU","Mid wall unit","EA",1,0,0]
[null,56,null,null,"Cassette unit","EA",1,0,0]
[null,57,null,null,"Console unit","EA",1,0,0]
[null,58,null,"12000 BTU","Mid wall unit","EA",1,0,0]
[null,59,null,null,"Cassette unit","EA",1,0,{"$f":"SUM(G87*H87)","v":0}]
[null,60,null,null,"Console unit","EA",1,0,0]
[null,61,null,"18000 BTU","Mid wall unit","EA",1,0,0]
[null,62,null,null,"Cassette unit","EA",1,0,0]
[null,63,null,null,"Console unit","EA",1,0,0]
[null,64,null,"24000 BTU","Mid wall unit","EA",1,0,0]
[null,65,null,null,"Cassette unit","EA",1,0,{"$f":"SUM(G93*H93)","v":0}]
[null,66,null,null,"Console unit","EA",1,0,0]
[null,67,null,"30000 BTU","Mid wall unit","EA",1,0,0]
[null,68,null,null,"Cassette unit","EA",1,0,0]
[null,69,null,null,"Console unit","EA",1,0,0]
[null,70,null,"36000 BTU","Mid wall unit","EA",1,0,0]
[null,71,null,null,"Cassette unit","EA",1,0,0]
[null,72,null,null,"Console unit","EA",1,0,0]
[]
[null,null,"New installation of air conditioner"]
[null,73,null,"9000 BTU","Mid wall unit","EA",1,0,0]
[null,74,null,null,"Cassette unit","EA",1,0,0]
[null,75,null,null,"Console unit","EA",1,0,0]
[null,76,null,"12000 BTU","Mid wall unit","EA",1,0,{"$f":"SUM(G106*H106)","v":0}]
[null,77,null,null,"Cassette unit","EA",1,0,0]
[null,78,null,null,"Console unit","EA",1,0,0]
[null,79,null,"18000 BTU","Mid wall unit","EA",1,0,0]
[null,80,null,null,"Cassette unit","EA",1,0,0]
[null,81,null,null,"Console unit","EA",1,0,0]
[null,82,null,"24000 BTU","Mid wall unit","EA",1,0,0]
[null,83,null,null,"Cassette unit","EA",1,0,0]
[null,84,null,null,"Console unit","EA",1,0,0]
[null,85,null,"30000 BTU","Mid wall unit","EA",1,0,0]
[null,86,null,null,"Cassette unit","EA",1,0,0]
[null,87,null,null,"Console unit","EA",1,0,0]
[null,88,null,"36000 BTU","Mid wall unit","EA",1,0,0]
[null,89,null,null,"Cassette unit","EA",1,0,0]
[null,90,null,null,"Console unit","EA",1,0,0]
[]
[null,null,"Remote control replacement"]
[null,91,null,"All makes",null,"EA",1,0,{"$f":"SUM(G123*H123)","v":0}]
[]
[null,null,"Central air conditioning system service"]
[null,92,null,"Chillers - check the following basic requirements",null,"EA",1,0,{"$f":"SUM(G126*H126)","v":0}]
[null,93,null,"Chillers - Air Handling Units ",null,"EA",1,0,0]
[null,94,null,"Servicing of pumps",null,"EA",1,0,{"$f":"SUM(G128*H128)","v":0}]
[null,95,null,"Cooling Towers",null,"EA",1,0,0]
[null,96,null,"BMS / CONTROL",null,"EA",1,0,0]
[]
[null,null,"New installation central air conditioning system"]
[null,97,null,"Chillers - check the following basic requirements",null,"EA",1,0,{"$f":"SUM(G133*H133)","v":0}]
[null,98,null,"Chillers - Air Handling Units ",null,"EA",1,0,{"$f":"SUM(G134*H134)","v":0}]
[null,99,null,"Servicing of pumps",null,"EA",1,0,0]
[null,100,null,"Cooling Towers",null,"EA",1,0,{"$f":"SUM(G136*H136)","v":0}]
[null,101,null,"BMS / CONTROL",null,"EA",1,0,0]
[]
[null,null,"Additional material and labour"]
[null,102,null,"Outside trunking Grey (75mm x 75mm (per length)",null,"M",1,0,{"$f":"SUM(G140*H140)","v":0}]
[null,103,null,"Outside trunking White (100mm x 40mm (per length)",null,"M",1,0,0]
[null,104,null,"¼ “ copper pipe c/w insulation (p/m)  - R410A",null,"M",1,0,0]
[null,105,null,"3/8 “ copper pipe c/w insulation (p/m)  - R410A",null,"M",1,0,0]
[null,106,null,"½ “ copper pipe c/w insulation (p/m)  - R410A",null,"M",1,0,0]
[null,107,null,"5/8 “ copper pipe c/w insulation (p/m)  - R410A",null,"M",1,0,{"$f":"SUM(G145*H145)","v":0}]
[null,108,null,"¾ “ copper pipe c/w insulation (p/m)  - R410A",null,"M",1,0,0]
[null,109,null,"Nosk Cable 2.5mm (p/m) - 2 plus earth",null,"M",1,0,0]
[null,110,null,"20mm PVC Drain Pipe (p/m)",null,"M",1,0,0]
[null,111,null,"25mm PVC Drain Pipe (p/m)",null,"M",1,0,0]
[]
[null,null,"Total for Plumbing:",{"$nulls":5},{"$f":"SUM(I23:I150)","v":0}]
[]
[null,null,{"$f":"A1","v":"SECTION NO 3: HVAC"}]
[]
[null,null,"Plumbing and Drainage",{"$nulls":5},{"$f":"I151","v":{"v":0,"d":"0.00"}}]
[]
[null,null,"TOTAL CARRIED TO FINAL SUMMARY",{"$nulls":5},{"$f":"I155","v":{"v":0,"d":"0.00"}}]